[Event "Early-Titled-Tuesday-Blitz-September-26-2023"]
[Site "Chess.com"]
[Date "2023.09.26"]
[Round "8"]
[White "skkeyan1309"]
[Black "Bilan_Danila"]
[Result "1-0"]
[WhiteElo "2722"]
[BlackElo "2527"]
[TimeControl "180+1"]
[EndTime "9:28:02 PDT"]
[Termination "skkeyan1309 won by resignation"]

1. d4 {[%clk 0:03:00]} 1... d5 {[%clk 0:03:00]} 2. c4 {[%clk 0:02:59.8]} 2... c6
{[%clk 0:03:00.4]} 3. Nf3 {[%clk 0:02:58.4]} 3... Nf6 {[%clk 0:03:00.6]} 4. e3
{[%clk 0:02:58.7]} 4... e6 {[%clk 0:03:00.7]} 5. Nc3 {[%clk 0:02:57]} 5... Nbd7
{[%clk 0:03:01.3]} 6. Qc2 {[%clk 0:02:57.5]} 6... Bd6 {[%clk 0:03:00.9]} 7. b3
{[%clk 0:02:57]} 7... a6 {[%clk 0:02:50.3]} 8. Be2 {[%clk 0:02:54.7]} 8... O-O
{[%clk 0:02:44]} 9. Bb2 {[%clk 0:02:54.3]} 9... e5 {[%clk 0:02:33.3]} 10. cxd5
{[%clk 0:02:50.6]} 10... cxd5 {[%clk 0:02:32.3]} 11. dxe5 {[%clk 0:02:48.5]}
11... Nxe5 {[%clk 0:02:32.2]} 12. O-O {[%clk 0:02:47.7]} 12... Nxf3+ {[%clk
0:02:24]} 13. Bxf3 {[%clk 0:02:48.6]} 13... Be6 {[%clk 0:02:22.1]} 14. Rfd1
{[%clk 0:02:47.6]} 14... Rc8 {[%clk 0:02:21.9]} 15. Qd3 {[%clk 0:02:46.1]} 15...
Be5 {[%clk 0:02:09.4]} 16. Na4 {[%clk 0:02:36.5]} 16... Bxb2 {[%clk 0:02:02]}
17. Nxb2 {[%clk 0:02:37.4]} 17... Qa5 {[%clk 0:01:56.3]} 18. Qd2 {[%clk
0:02:36.2]} 18... Qxd2 {[%clk 0:01:49.3]} 19. Rxd2 {[%clk 0:02:36.3]} 19... g6
{[%clk 0:01:48.6]} 20. Na4 {[%clk 0:02:24.8]} 20... b5 {[%clk 0:01:38.7]} 21.
Nb6 {[%clk 0:02:16.3]} 21... Rc5 {[%clk 0:01:02.6]} 22. Rad1 {[%clk 0:02:11.1]}
22... Rb8 {[%clk 0:00:55.1]} 23. Nxd5 {[%clk 0:02:07.3]} 23... Bxd5 {[%clk
0:00:35]} 24. Bxd5 {[%clk 0:02:08.1]} 24... Nxd5 {[%clk 0:00:21.3]} 25. Rxd5
{[%clk 0:02:09]} 25... Rc2 {[%clk 0:00:21.9]} 26. R5d2 {[%clk 0:02:07.6]} 26...
Rbc8 {[%clk 0:00:21.9]} 27. f3 {[%clk 0:02:07.9]} 27... Kf8 {[%clk 0:00:20.2]}
28. Kf2 {[%clk 0:02:08.2]} 28... Ke7 {[%clk 0:00:20.8]} 29. Ke2 {[%clk 0:02:09]}
29... h5 {[%clk 0:00:19.8]} 30. Rxc2 {[%clk 0:02:09.4]} 30... Rxc2+ {[%clk
0:00:19.7]} 31. Rd2 {[%clk 0:02:10.3]} 31... Rc3 {[%clk 0:00:20.3]} 32. h4
{[%clk 0:02:10.5]} 32... Rc1 {[%clk 0:00:18.4]} 33. e4 {[%clk 0:02:10.5]} 33...
Ra1 {[%clk 0:00:18.7]} 34. Ke3 {[%clk 0:02:10.8]} 34... Rc1 {[%clk 0:00:18.5]}
35. Kf4 {[%clk 0:02:10.9]} 35... Rh1 {[%clk 0:00:18.6]} 36. Kg5 {[%clk
0:02:11.1]} 36... Ra1 {[%clk 0:00:18.7]} 37. g4 {[%clk 0:02:10.7]} 37... hxg4
{[%clk 0:00:18]} 38. fxg4 {[%clk 0:02:11.6]} 38... Rg1 {[%clk 0:00:17.9]} 39. e5
{[%clk 0:02:10.9]} 39... Re1 {[%clk 0:00:17.3]} 40. h5 {[%clk 0:02:09.1]} 40...
gxh5 {[%clk 0:00:13.5]} 41. gxh5 {[%clk 0:02:10]} 41... Rxe5+ {[%clk 0:00:13.9]}
42. Kh6 {[%clk 0:02:10.5]} 42... Kf8 {[%clk 0:00:03.9]} 43. Rd8+ {[%clk
0:02:10.1]} 43... Ke7 {[%clk 0:00:04.5]} 44. Ra8 {[%clk 0:02:10.9]} 44... Re6+
{[%clk 0:00:04.3]} 45. Kg7 {[%clk 0:02:11]} 45... Re5 {[%clk 0:00:03.1]} 46. h6
{[%clk 0:02:11.2]} 46... Rg5+ {[%clk 0:00:03.5]} 47. Kh8 {[%clk 0:02:10.7]}
47... Rg6 {[%clk 0:00:03.9]} 48. h7 {[%clk 0:02:10.5]} 48... f5 {[%clk
0:00:04.3]} 49. Rg8 {[%clk 0:02:10.4]} 49... Rf6 {[%clk 0:00:03]} 50. Kg7 {[%clk
0:02:10.6]} 50... Rf7+ {[%clk 0:00:03]} 51. Kg6 {[%clk 0:02:11.3]} 51... Rxh7
{[%clk 0:00:01.6]} 52. Kxh7 {[%clk 0:02:11.5]} 1-0

[Event "Early-Titled-Tuesday-Blitz-September-26-2023"]
[Site "Chess.com"]
[Date "2023.09.26"]
[Round "8"]
[White "twofoxniel"]
[Black "CalinGheorghiu"]
[Result "0-1"]
[WhiteElo "2658"]
[BlackElo "2406"]
[TimeControl "180+1"]
[EndTime "9:28:07 PDT"]
[Termination "CalinGheorghiu won by resignation"]

1. e4 {[%clk 0:03:00.9]} 1... c5 {[%clk 0:02:51.7]} 2. d4 {[%clk 0:02:57.3]}
2... cxd4 {[%clk 0:02:49.5]} 3. c3 {[%clk 0:02:58]} 3... Nf6 {[%clk 0:02:48.7]}
4. e5 {[%clk 0:02:57.9]} 4... Nd5 {[%clk 0:02:48.7]} 5. Nf3 {[%clk 0:02:58.1]}
5... d6 {[%clk 0:02:43.6]} 6. cxd4 {[%clk 0:02:54.4]} 6... Nc6 {[%clk
0:02:42.5]} 7. Bc4 {[%clk 0:02:54.9]} 7... e6 {[%clk 0:02:38.2]} 8. O-O {[%clk
0:02:54]} 8... Be7 {[%clk 0:02:35.9]} 9. Qe2 {[%clk 0:02:54.7]} 9... O-O {[%clk
0:02:35.3]} 10. Rd1 {[%clk 0:02:54.4]} 10... Bd7 {[%clk 0:02:31.6]} 11. Bxd5
{[%clk 0:02:53.6]} 11... exd5 {[%clk 0:02:30.8]} 12. Nc3 {[%clk 0:02:54.5]}
12... dxe5 {[%clk 0:02:26]} 13. dxe5 {[%clk 0:02:54.2]} 13... Be6 {[%clk
0:02:24.8]} 14. Bf4 {[%clk 0:02:53.5]} 14... Qa5 {[%clk 0:02:17.6]} 15. Rd2
{[%clk 0:02:49.8]} 15... Rfd8 {[%clk 0:02:16.1]} 16. Rad1 {[%clk 0:02:49.9]}
16... Bb4 {[%clk 0:02:05.4]} 17. Rd3 {[%clk 0:02:36.1]} 17... Bxc3 {[%clk
0:02:01.7]} 18. bxc3 {[%clk 0:02:37]} 18... d4 {[%clk 0:01:36.8]} 19. Ng5 {[%clk
0:01:43.3]} 19... Bf5 {[%clk 0:01:22.9]} 20. e6 {[%clk 0:01:22.5]} 20... fxe6
{[%clk 0:01:07.6]} 21. Rg3 {[%clk 0:01:18.2]} 21... dxc3 {[%clk 0:01:00.4]} 22.
Re1 {[%clk 0:01:14.5]} 22... c2 {[%clk 0:00:57.2]} 23. Nxe6 {[%clk 0:00:51.9]}
23... Qxe1+ {[%clk 0:00:55.6]} 24. Qxe1 {[%clk 0:00:52.8]} 24... Rd1 {[%clk
0:00:55.5]} 25. Rxg7+ {[%clk 0:00:37.1]} 25... Kh8 {[%clk 0:00:52]} 26. Kf1
{[%clk 0:00:33.8]} 26... Bd3+ {[%clk 0:00:44.2]} 0-1

[Event "Early-Titled-Tuesday-Blitz-September-26-2023"]
[Site "Chess.com"]
[Date "2023.09.26"]
[Round "8"]
[White "CraiggoryC"]
[Black "DarZay"]
[Result "1-0"]
[WhiteElo "2249"]
[BlackElo "2202"]
[TimeControl "180+1"]
[EndTime "9:28:11 PDT"]
[Termination "CraiggoryC won by resignation"]

1. e4 {[%clk 0:02:59.6]} 1... c5 {[%clk 0:02:56.1]} 2. Nf3 {[%clk 0:02:59.6]}
2... Nc6 {[%clk 0:02:54.9]} 3. d4 {[%clk 0:03:00.1]} 3... cxd4 {[%clk
0:02:53.7]} 4. Nxd4 {[%clk 0:03:01]} 4... Nf6 {[%clk 0:02:53.8]} 5. Nc3 {[%clk
0:03:01.7]} 5... d6 {[%clk 0:02:52.9]} 6. Bc4 {[%clk 0:03:01.1]} 6... e5 {[%clk
0:02:52.7]} 7. Nf5 {[%clk 0:02:54.5]} 7... Bxf5 {[%clk 0:02:45]} 8. exf5 {[%clk
0:02:55.4]} 8... Nd4 {[%clk 0:02:44.8]} 9. Bg5 {[%clk 0:02:40.4]} 9... Be7
{[%clk 0:02:40.6]} 10. Bxf6 {[%clk 0:02:37.9]} 10... Bxf6 {[%clk 0:02:40.7]} 11.
Nd5 {[%clk 0:02:38.2]} 11... O-O {[%clk 0:02:36.5]} 12. Ne3 {[%clk 0:02:24.7]}
12... Bg5 {[%clk 0:02:31]} 13. O-O {[%clk 0:02:22.4]} 13... Qd7 {[%clk
0:02:27.5]} 14. c3 {[%clk 0:02:13.4]} 14... Nxf5 {[%clk 0:02:12.3]} 15. Qg4
{[%clk 0:02:03.5]} 15... Bxe3 {[%clk 0:02:11.7]} 16. fxe3 {[%clk 0:02:02.4]}
16... Qc6 {[%clk 0:02:05.3]} 17. Rxf5 {[%clk 0:01:59.3]} 17... d5 {[%clk
0:01:56.3]} 18. Bb3 {[%clk 0:01:51.5]} 18... f6 {[%clk 0:01:51.5]} 19. Rd1
{[%clk 0:01:27.5]} 19... Rad8 {[%clk 0:01:49.5]} 20. Rxd5 {[%clk 0:01:09.1]}
20... Rxd5 {[%clk 0:01:45.1]} 21. e4 {[%clk 0:01:09.1]} 21... Qc5+ {[%clk
0:01:33.2]} 22. Kh1 {[%clk 0:01:06.3]} 22... g6 {[%clk 0:01:20.6]} 23. Rf1
{[%clk 0:00:58.5]} 23... f5 {[%clk 0:01:16.8]} 24. Qd1 {[%clk 0:00:52]} 24...
fxe4 {[%clk 0:01:01.6]} 25. Qxd5+ {[%clk 0:00:51.5]} 25... Qxd5 {[%clk
0:01:01.3]} 26. Bxd5+ {[%clk 0:00:51.2]} 26... Kg7 {[%clk 0:01:01.1]} 27. Rxf8
{[%clk 0:00:51.2]} 27... Kxf8 {[%clk 0:01:01.7]} 28. Bxe4 {[%clk 0:00:49.5]}
28... b6 {[%clk 0:01:02.2]} 29. Kg1 {[%clk 0:00:49.7]} 29... Ke7 {[%clk
0:01:02.8]} 30. Kf2 {[%clk 0:00:50]} 30... Kd6 {[%clk 0:01:03.5]} 31. Ke3 {[%clk
0:00:50.4]} 31... Kc5 {[%clk 0:01:04.1]} 32. b3 {[%clk 0:00:45]} 32... b5 {[%clk
0:01:04.3]} 33. h4 {[%clk 0:00:39.8]} 33... a5 {[%clk 0:01:04.1]} 34. h5 {[%clk
0:00:39.3]} 34... gxh5 {[%clk 0:01:03.4]} 35. Bxh7 {[%clk 0:00:39.4]} 35... a4
{[%clk 0:01:03.8]} 36. g3 {[%clk 0:00:37.7]} 36... axb3 {[%clk 0:00:59.6]} 37.
axb3 {[%clk 0:00:38.6]} 37... b4 {[%clk 0:00:59]} 38. cxb4+ {[%clk 0:00:34]}
38... Kxb4 {[%clk 0:00:59.4]} 39. Bg8 {[%clk 0:00:33.6]} 39... Kc3 {[%clk
0:00:57.9]} 40. Ke4 {[%clk 0:00:33.6]} 40... Kd2 {[%clk 0:00:56.9]} 41. Kxe5
{[%clk 0:00:33.6]} 41... Ke3 {[%clk 0:00:57]} 42. Bf7 {[%clk 0:00:31.5]} 42...
h4 {[%clk 0:00:56.6]} 43. gxh4 {[%clk 0:00:30]} 1-0

[Event "Early-Titled-Tuesday-Blitz-September-26-2023"]
[Site "Chess.com"]
[Date "2023.09.26"]
[Round "8"]
[White "remi04"]
[Black "nikitakhoroshev"]
[Result "1-0"]
[WhiteElo "2839"]
[BlackElo "2685"]
[TimeControl "180+1"]
[EndTime "9:28:13 PDT"]
[Termination "remi04 won by resignation"]

1. c4 {[%clk 0:03:00.9]} 1... e5 {[%clk 0:02:58.9]} 2. Nc3 {[%clk 0:03:01.2]}
2... Nc6 {[%clk 0:02:59.6]} 3. Nf3 {[%clk 0:03:01.6]} 3... g6 {[%clk 0:02:58.7]}
4. d4 {[%clk 0:03:01.1]} 4... exd4 {[%clk 0:02:59.3]} 5. Nxd4 {[%clk 0:03:02]}
5... Bg7 {[%clk 0:03:00]} 6. Nxc6 {[%clk 0:03:02.6]} 6... bxc6 {[%clk
0:03:00.9]} 7. g3 {[%clk 0:03:03.2]} 7... Ne7 {[%clk 0:03:00]} 8. Bg2 {[%clk
0:03:03.6]} 8... O-O {[%clk 0:02:59.8]} 9. O-O {[%clk 0:03:04.2]} 9... Bb7
{[%clk 0:02:59.6]} 10. Qc2 {[%clk 0:03:02.9]} 10... d5 {[%clk 0:02:59.1]} 11.
Rd1 {[%clk 0:03:01]} 11... Qd7 {[%clk 0:02:51.5]} 12. Bf4 {[%clk 0:02:50.2]}
12... Rfd8 {[%clk 0:02:48.7]} 13. Na4 {[%clk 0:02:48.9]} 13... Qc8 {[%clk
0:02:25.8]} 14. Nc5 {[%clk 0:02:37.8]} 14... Ba6 {[%clk 0:02:13.4]} 15. cxd5
{[%clk 0:02:35.8]} 15... Nxd5 {[%clk 0:02:10.8]} 16. Bg5 {[%clk 0:02:13.4]}
16... Rd6 {[%clk 0:02:05.6]} 17. e4 {[%clk 0:02:05.3]} 17... Nb4 {[%clk
0:02:04.4]} 18. Qa4 {[%clk 0:02:04.1]} 18... Rb8 {[%clk 0:01:57.5]} 19. e5
{[%clk 0:01:29.7]} 19... Bxe5 {[%clk 0:01:45.6]} 20. a3 {[%clk 0:01:28.3]} 20...
Be2 {[%clk 0:01:26.1]} 21. Re1 {[%clk 0:00:50.1]} 21... Bxb2 {[%clk 0:01:25.5]}
22. axb4 {[%clk 0:00:42.1]} 22... Bxa1 {[%clk 0:01:25.6]} 23. Qxa1 {[%clk
0:00:41.4]} 23... Qg4 {[%clk 0:01:02.3]} 24. Ne4 {[%clk 0:00:32.6]} 24... Re8
{[%clk 0:00:39.7]} 25. Bh6 {[%clk 0:00:27.2]} 25... f6 {[%clk 0:00:36.6]} 26.
Nxf6+ {[%clk 0:00:26.5]} 26... Rxf6 {[%clk 0:00:35.7]} 27. Qxf6 {[%clk
0:00:27.2]} 27... Qd7 {[%clk 0:00:34.8]} 28. Rxe2 {[%clk 0:00:23.4]} 28... Qd1+
{[%clk 0:00:33.8]} 29. Bf1 {[%clk 0:00:23.3]} 1-0

[Event "Early-Titled-Tuesday-Blitz-September-26-2023"]
[Site "Chess.com"]
[Date "2023.09.26"]
[Round "8"]
[White "TigranHH"]
[Black "DTChess"]
[Result "0-1"]
[WhiteElo "2264"]
[BlackElo "2600"]
[TimeControl "180+1"]
[EndTime "9:28:14 PDT"]
[Termination "DTChess won by resignation"]

1. d4 {[%clk 0:03:00.9]} 1... Nf6 {[%clk 0:02:59.6]} 2. c4 {[%clk 0:03:01.1]}
2... e6 {[%clk 0:02:59.1]} 3. Nf3 {[%clk 0:03:00.9]} 3... b6 {[%clk 0:02:59]} 4.
g3 {[%clk 0:03:00.5]} 4... Bb7 {[%clk 0:02:59.3]} 5. Bg2 {[%clk 0:03:00.6]} 5...
g6 {[%clk 0:02:59.9]} 6. O-O {[%clk 0:02:58.8]} 6... Bg7 {[%clk 0:02:59.9]} 7.
Nc3 {[%clk 0:02:58.2]} 7... O-O {[%clk 0:02:59.2]} 8. d5 {[%clk 0:02:58]} 8...
exd5 {[%clk 0:02:59.5]} 9. cxd5 {[%clk 0:02:56.5]} 9... d6 {[%clk 0:02:59.3]}
10. e4 {[%clk 0:02:49]} 10... Re8 {[%clk 0:02:59.3]} 11. Re1 {[%clk 0:02:49.3]}
11... a5 {[%clk 0:02:59]} 12. h3 {[%clk 0:02:41.9]} 12... Na6 {[%clk 0:02:58.8]}
13. Bg5 {[%clk 0:02:41.2]} 13... Nc5 {[%clk 0:02:58.5]} 14. Qc2 {[%clk
0:02:37.8]} 14... h6 {[%clk 0:02:55.6]} 15. Be3 {[%clk 0:02:36.4]} 15... Ncxe4
{[%clk 0:02:53.4]} 16. Nxe4 {[%clk 0:02:11.4]} 16... Nxe4 {[%clk 0:02:40.3]} 17.
Bd4 {[%clk 0:01:16]} 17... Bxd4 {[%clk 0:02:32.5]} 18. Nxd4 {[%clk 0:01:15.5]}
18... Nc5 {[%clk 0:02:28.3]} 19. Qd2 {[%clk 0:00:59.6]} 19... Kg7 {[%clk
0:02:23.8]} 20. Rxe8 {[%clk 0:00:57.3]} 20... Qxe8 {[%clk 0:02:21.8]} 21. Re1
{[%clk 0:00:55.9]} 21... Qd8 {[%clk 0:02:20.8]} 22. h4 {[%clk 0:00:50.9]} 22...
h5 {[%clk 0:02:15.4]} 23. Re3 {[%clk 0:00:42.4]} 23... Qd7 {[%clk 0:02:03.3]}
24. Qc3 {[%clk 0:00:39.1]} 24... Kg8 {[%clk 0:01:59.8]} 25. Nc6 {[%clk
0:00:27.5]} 25... Re8 {[%clk 0:01:55.4]} 26. Qf6 {[%clk 0:00:20.5]} 26... Rxe3
{[%clk 0:01:47.3]} 27. fxe3 {[%clk 0:00:21.4]} 27... Bxc6 {[%clk 0:01:47.3]} 28.
dxc6 {[%clk 0:00:21.4]} 28... Qe8 {[%clk 0:01:46.6]} 29. Kf2 {[%clk 0:00:18.9]}
29... Nd3+ {[%clk 0:01:29.4]} 30. Ke2 {[%clk 0:00:18.2]} 30... Ne5 {[%clk
0:01:25.7]} 31. Bd5 {[%clk 0:00:14.6]} 31... Qc8 {[%clk 0:01:10.6]} 32. Kd2
{[%clk 0:00:13.1]} 32... Qa6 {[%clk 0:01:05.8]} 33. Qd8+ {[%clk 0:00:11]} 33...
Kg7 {[%clk 0:01:05.6]} 34. Qxc7 {[%clk 0:00:10.7]} 34... Qd3+ {[%clk 0:01:05.4]}
35. Kc1 {[%clk 0:00:11.1]} 35... Qxe3+ {[%clk 0:01:02]} 36. Kc2 {[%clk
0:00:10.5]} 36... Qd3+ {[%clk 0:01:01.5]} 37. Kc1 {[%clk 0:00:11.2]} 37... Qxd5
{[%clk 0:00:59.5]} 0-1

[Event "Early-Titled-Tuesday-Blitz-September-26-2023"]
[Site "Chess.com"]
[Date "2023.09.26"]
[Round "8"]
[White "Aariow"]
[Black "blitzking1729"]
[Result "0-1"]
[WhiteElo "2628"]
[BlackElo "2766"]
[TimeControl "180+1"]
[EndTime "9:28:15 PDT"]
[Termination "blitzking1729 won by resignation"]

1. d4 {[%clk 0:02:13.5]} 1... d5 {[%clk 0:02:51.4]} 2. c4 {[%clk 0:02:13.4]}
2... e6 {[%clk 0:02:51.7]} 3. Nc3 {[%clk 0:02:13.7]} 3... Nf6 {[%clk 0:02:51.4]}
4. Nf3 {[%clk 0:02:13.7]} 4... dxc4 {[%clk 0:02:51.5]} 5. e3 {[%clk 0:02:14]}
5... a6 {[%clk 0:02:50.4]} 6. a4 {[%clk 0:02:14.8]} 6... b6 {[%clk 0:02:46.4]}
7. Bxc4 {[%clk 0:02:15.2]} 7... Bb7 {[%clk 0:02:46]} 8. O-O {[%clk 0:02:15.9]}
8... Bb4 {[%clk 0:02:46.4]} 9. Qe2 {[%clk 0:02:16.6]} 9... O-O {[%clk
0:02:45.3]} 10. Rd1 {[%clk 0:02:17.2]} 10... Qe7 {[%clk 0:02:45.3]} 11. Bd2
{[%clk 0:02:10.5]} 11... Nbd7 {[%clk 0:02:45]} 12. Be1 {[%clk 0:02:06.1]} 12...
Rfd8 {[%clk 0:02:41.9]} 13. Rac1 {[%clk 0:02:00.7]} 13... Nf8 {[%clk 0:02:30.8]}
14. Ne5 {[%clk 0:02:00.4]} 14... Ng6 {[%clk 0:02:30.1]} 15. Nxg6 {[%clk
0:02:00.9]} 15... hxg6 {[%clk 0:02:30.6]} 16. f3 {[%clk 0:01:59.9]} 16... c5
{[%clk 0:02:29.5]} 17. Bf2 {[%clk 0:01:33.2]} 17... cxd4 {[%clk 0:02:28.8]} 18.
exd4 {[%clk 0:01:34.1]} 18... a5 {[%clk 0:02:16.8]} 19. Nb5 {[%clk 0:01:27.4]}
19... Nd5 {[%clk 0:02:11.9]} 20. Bxd5 {[%clk 0:01:04.6]} 20... Bxd5 {[%clk
0:02:11.4]} 21. Rc7 {[%clk 0:00:54.6]} 21... Rd7 {[%clk 0:01:50.9]} 22. Rdc1
{[%clk 0:00:53.9]} 22... Rad8 {[%clk 0:01:50.2]} 23. Rxd7 {[%clk 0:00:27.6]}
23... Rxd7 {[%clk 0:01:47.8]} 24. Rc8+ {[%clk 0:00:27]} 24... Rd8 {[%clk
0:01:44.1]} 25. Rc7 {[%clk 0:00:27.5]} 25... Qf6 {[%clk 0:01:21.6]} 26. Qe5
{[%clk 0:00:21.4]} 26... Bb3 {[%clk 0:01:12.4]} 27. Qe4 {[%clk 0:00:14.5]} 27...
Bxa4 {[%clk 0:01:09.5]} 28. Na7 {[%clk 0:00:06.1]} 28... Qf5 {[%clk 0:01:04.5]}
29. Qxf5 {[%clk 0:00:02.7]} 29... gxf5 {[%clk 0:01:03.9]} 30. d5 {[%clk
0:00:02.3]} 30... Rxd5 {[%clk 0:01:02.4]} 31. Bxb6 {[%clk 0:00:02.6]} 31... Rd1+
{[%clk 0:01:02.2]} 32. Kf2 {[%clk 0:00:02.8]} 32... Rd2+ {[%clk 0:01:02.3]} 33.
Kg3 {[%clk 0:00:03.2]} 33... Bd6+ {[%clk 0:01:01.4]} 0-1

[Event "Early-Titled-Tuesday-Blitz-September-26-2023"]
[Site "Chess.com"]
[Date "2023.09.26"]
[Round "8"]
[White "lefonghua"]
[Black "Evgeny81"]
[Result "0-1"]
[WhiteElo "2620"]
[BlackElo "2748"]
[TimeControl "180+1"]
[EndTime "9:28:15 PDT"]
[Termination "Evgeny81 won by resignation"]

1. d4 {[%clk 0:03:00.9]} 1... Nf6 {[%clk 0:02:52.1]} 2. c4 {[%clk 0:03:01.2]}
2... c5 {[%clk 0:02:51.7]} 3. d5 {[%clk 0:03:01.2]} 3... g6 {[%clk 0:02:52]} 4.
Nc3 {[%clk 0:03:00.4]} 4... Bg7 {[%clk 0:02:52.4]} 5. e4 {[%clk 0:03:00.8]} 5...
d6 {[%clk 0:02:52.8]} 6. f4 {[%clk 0:03:00.8]} 6... O-O {[%clk 0:02:51.9]} 7.
Nf3 {[%clk 0:03:01]} 7... Bg4 {[%clk 0:02:50.6]} 8. Be2 {[%clk 0:03:01.2]} 8...
Na6 {[%clk 0:02:47.7]} 9. O-O {[%clk 0:02:59.9]} 9... Nc7 {[%clk 0:02:47.1]} 10.
h3 {[%clk 0:02:53.9]} 10... Bxf3 {[%clk 0:02:46.9]} 11. Bxf3 {[%clk 0:02:54.8]}
11... Rb8 {[%clk 0:02:42.1]} 12. a4 {[%clk 0:02:51.6]} 12... Na6 {[%clk
0:02:38.8]} 13. Re1 {[%clk 0:02:48]} 13... Nb4 {[%clk 0:02:38.4]} 14. e5 {[%clk
0:02:46.9]} 14... Nd7 {[%clk 0:02:36.5]} 15. e6 {[%clk 0:02:36.6]} 15... fxe6
{[%clk 0:02:27.9]} 16. dxe6 {[%clk 0:02:33.5]} 16... Nf6 {[%clk 0:02:25]} 17.
Nd5 {[%clk 0:02:27.8]} 17... Nfxd5 {[%clk 0:02:21]} 18. cxd5 {[%clk 0:02:26.2]}
18... c4 {[%clk 0:02:15]} 19. g4 {[%clk 0:02:19.7]} 19... Nd3 {[%clk 0:02:12.6]}
20. f5 {[%clk 0:02:11.2]} 20... gxf5 {[%clk 0:02:01.5]} 21. gxf5 {[%clk
0:02:11.1]} 21... Qb6+ {[%clk 0:01:52.7]} 22. Be3 {[%clk 0:02:04.7]} 22... Bd4
{[%clk 0:01:52.4]} 23. Qd2 {[%clk 0:01:56.2]} 23... Rxf5 {[%clk 0:01:51.7]} 24.
Be4 {[%clk 0:01:47.9]} 24... Re5 {[%clk 0:01:14.2]} 25. Bxd4 {[%clk 0:01:32.2]}
25... Qxd4+ {[%clk 0:01:13.5]} 26. Kh2 {[%clk 0:01:31]} 26... Rf8 {[%clk
0:00:47]} 27. Qg2+ {[%clk 0:00:53.4]} 27... Kh8 {[%clk 0:00:46]} 28. Bxd3 {[%clk
0:00:53.6]} 28... Rf2 {[%clk 0:00:42.3]} 29. Bf1 {[%clk 0:00:52.4]} 29... Rxg2+
{[%clk 0:00:31.1]} 30. Bxg2 {[%clk 0:00:53.3]} 30... Rxe1 {[%clk 0:00:18.4]} 31.
Rxe1 {[%clk 0:00:53]} 31... Qxb2 {[%clk 0:00:18.7]} 32. Rf1 {[%clk 0:00:53.3]}
32... Qe5+ {[%clk 0:00:15.4]} 33. Kh1 {[%clk 0:00:53.3]} 33... c3 {[%clk
0:00:15.6]} 34. Rf8+ {[%clk 0:00:53.4]} 34... Kg7 {[%clk 0:00:15.9]} 35. Rf7+
{[%clk 0:00:54]} 35... Kh6 {[%clk 0:00:14.3]} 36. Rxe7 {[%clk 0:00:54.2]} 36...
c2 {[%clk 0:00:14.7]} 37. Rc7 {[%clk 0:00:54.6]} 37... Qe1+ {[%clk 0:00:14.4]}
38. Kh2 {[%clk 0:00:55.3]} 38... c1=Q {[%clk 0:00:14.4]} 0-1

[Event "Early-Titled-Tuesday-Blitz-September-26-2023"]
[Site "Chess.com"]
[Date "2023.09.26"]
[Round "8"]
[White "Kotofeyca"]
[Black "NowInChess"]
[Result "1/2-1/2"]
[WhiteElo "2377"]
[BlackElo "2266"]
[TimeControl "180+1"]
[EndTime "9:28:33 PDT"]
[Termination "Game drawn by repetition"]

1. d4 {[%clk 0:03:00.5]} 1... Nf6 {[%clk 0:02:59.9]} 2. c4 {[%clk 0:03:00.6]}
2... c5 {[%clk 0:03:00.1]} 3. Nf3 {[%clk 0:03:00.7]} 3... g6 {[%clk 0:02:58.7]}
4. Nc3 {[%clk 0:03:00.4]} 4... Bg7 {[%clk 0:02:59.2]} 5. g3 {[%clk 0:03:00.6]}
5... O-O {[%clk 0:02:59.1]} 6. Bg2 {[%clk 0:03:01]} 6... cxd4 {[%clk 0:02:56.5]}
7. Nxd4 {[%clk 0:03:01.9]} 7... Nc6 {[%clk 0:02:57]} 8. O-O {[%clk 0:03:02]}
8... Nxd4 {[%clk 0:02:56.1]} 9. Qxd4 {[%clk 0:03:01.7]} 9... d6 {[%clk
0:02:49.4]} 10. Qd2 {[%clk 0:03:01.5]} 10... Be6 {[%clk 0:02:47]} 11. b3 {[%clk
0:03:01.4]} 11... d5 {[%clk 0:02:34]} 12. cxd5 {[%clk 0:02:41.3]} 12... Nxd5
{[%clk 0:02:32.9]} 13. Bxd5 {[%clk 0:00:39.3]} 13... Bxd5 {[%clk 0:02:19.5]} 14.
Ba3 {[%clk 0:00:34.8]} 14... Bc6 {[%clk 0:02:09.8]} 15. Qxd8 {[%clk 0:00:33.4]}
15... Rfxd8 {[%clk 0:02:07.5]} 16. Rac1 {[%clk 0:00:33.7]} 16... Rd2 {[%clk
0:02:00]} 17. Bxe7 {[%clk 0:00:30.6]} 17... Re8 {[%clk 0:01:55.7]} 18. Bc5
{[%clk 0:00:28.1]} 18... Bxc3 {[%clk 0:01:32.1]} 19. Rxc3 {[%clk 0:00:29]} 19...
Rxa2 {[%clk 0:01:29.5]} 20. e3 {[%clk 0:00:26]} 20... Rd8 {[%clk 0:01:14.6]} 21.
Bd4 {[%clk 0:00:26.2]} 21... h5 {[%clk 0:01:07.5]} 22. h4 {[%clk 0:00:25.8]}
22... Kh7 {[%clk 0:01:02.1]} 23. Rfc1 {[%clk 0:00:26.2]} 23... a6 {[%clk
0:00:40.2]} 24. b4 {[%clk 0:00:25.8]} 24... Re8 {[%clk 0:00:31.5]} 25. Rc5
{[%clk 0:00:25.3]} 25... Ra4 {[%clk 0:00:28.1]} 26. Rb1 {[%clk 0:00:23.7]} 26...
Ra2 {[%clk 0:00:25.5]} 27. Kf1 {[%clk 0:00:22.2]} 27... Be4 {[%clk 0:00:22.6]}
28. Rbc1 {[%clk 0:00:20.2]} 28... Bc6 {[%clk 0:00:22.1]} 29. Rb1 {[%clk
0:00:19.8]} 29... Be4 {[%clk 0:00:21]} 30. Rbc1 {[%clk 0:00:19.7]} 30... Bc6
{[%clk 0:00:20.9]} 31. Rb1 {[%clk 0:00:19.1]} 1/2-1/2